bitfinex-derivatives/quotes_SOLF0:USTF0_20250626
["timestamp","ask_amount","ask_price","bid_price","bid_amount"]
[1750936162477,2.23427129,143.57,143.56,6.9627]
[1750936162973,2.23427129,143.59,143.55,6.50604115]
[1750936163172,2.23427129,143.59,143.56,6.50604115]
[1750936163380,2.23427129,143.59,143.57,6.9622]
[1750936165981,2.23427129,143.58,143.57,6.9622]
[1750936168082,2.23427129,143.58,143.55,6.50604115]
[1750936168289,35.34,143.61,143.53,10.90897056]
[1750936168290,2.23427129,143.56,143.54,6.50604115]
[1750936168480,2.23427129,143.55,143.54,6.50604115]
[1750936169088,2.23427129,143.56,143.55,6.9631]
[1750936169388,2.23427129,143.56,143.55,13.46914115]
[1750936172188,11.38842285,143.59,143.55,6.50604115]
[1750936172391,2.23427129,143.57,143.55,6.50604115]
[1750936172777,2.23427129,143.57,143.56,6.9624]
[1750936172995,37.47589289,143.57,143.55,4.115e-05]
[1750936173192,37.47589289,143.57,143.45,2.34]
[1750936173193,11.75630863,143.56,143.45,2.34]
[1750936173396,2.23830532,143.46,143.41,17.58950584]
[1750936173585,2.23830532,143.43,143.41,17.58950584]
[1750936173892,2.23830532,143.43,143.41,4.6234]
[1750936174090,2.23830532,143.45,143.41,6.86170532]
[1750936174690,9.20660532,143.45,143.41,6.86170532]
[1750936174885,2.23830532,143.46,143.42,2.23830532]
[1750936175393,9.20610532,143.46,143.43,6.9685]
[1750936175985,2.23830532,143.46,143.42,2.23830532]
[1750936176384,35.24,143.47,143.41,43.36023576]
[1750936176587,42.2074,143.47,143.44,6.9683]
[1750936176986,35.24,143.47,143.44,6.9683]
[1750936177779,42.2073,143.47,143.41,43.36023576]
[1750936177981,42.2073,143.47,143.45,6.968]
[1750936178593,35.24,143.47,143.45,6.968]
[1750936178988,10.46363576,143.48,143.45,6.968]
[1750936179188,3.49683576,143.51,143.43,3.49683576]
[1750936179390,35.24,143.52,143.45,3.49683576]
[1750936179692,6.9654,143.51,143.45,38.73683576]
[1750936179892,35.24,143.52,143.45,38.73683576]
[1750936180096,35.24,143.52,143.51,6.9651]
[1750936180483,6.9643,143.53,143.48,4.7002]
[1750936180686,6.9643,143.53,143.5,6.9653]
[1750936182297,5.37525353,143.54,143.49,3.49683576]
[1750936182484,35.26,143.55,143.49,38.75683576]
[1750936182689,42.2234,143.55,143.52,6.9644]
[1750936182889,35.26,143.55,143.5,2.3796]
[1750936183101,3.49683576,143.56,143.5,2.3796]
[1750936183292,10.45973576,143.56,143.53,6.9639]
[1750936186199,3.49683576,143.56,143.5,2.3796]
[1750936186401,3.49683576,143.54,143.5,2.3796]
[1750936186599,3.49683576,143.54,143.48,4.7002]
[1750936186897,3.49683576,143.52,143.46,35.24]
[1750936187197,10.46183576,143.52,143.46,35.24]
[1750936187795,10.46183576,143.52,143.49,6.9657]
[1750936188501,6.965,143.52,143.5,6.9655]
[1750936189901,6.965,143.52,143.49,6.9659]
[1750936191096,35.24,143.53,143.5,6.9655]
[1750936192498,6.9649,143.52,143.49,6.9659]
[1750936193303,6.9649,143.52,143.5,6.9656]
[1750936196407,42.2044,143.53,143.5,6.9656]
[1750936196597,42.2044,143.53,143.46,35.24]
[1750936197198,42.2044,143.53,143.5,6.9653]
[1750936197407,42.2044,143.53,143.46,35.24]
[1750936197605,6.9647,143.52,143.46,35.24]
[1750936198202,6.9647,143.52,143.5,6.9654]
[1750936200309,6.9647,143.52,143.46,35.24]
[1750936200310,6.9647,143.52,143.49,6.9658]
[1750936200607,3.4945405,143.51,143.46,35.24]
[1750936200807,3.49540424,143.51,143.46,35.24]
[1750936201411,6.9658,143.5,143.48,6.9665]
[1750936202001,6.9662,143.49,143.47,6.9668]
[1750936202301,3.49540424,143.51,143.47,6.9668]
[1750936203410,6.9659,143.5,143.48,6.9665]
[1750936207015,10.46080424,143.51,143.48,6.9665]
[1750936208016,10.46080424,143.51,143.49,6.9661]
[1750936208409,3.49540424,143.51,143.46,35.24]
[1750936208615,8.78905571,143.51,143.47,6.9667]
[1750936208918,3.49540424,143.51,143.45,2.3352]
[1750936209216,6.9658,143.5,143.48,6.9666]
[1750936209910,6.9653,143.51,143.49,6.9659]
[1750936210107,8.79029272,143.52,143.45,2.3352]
[1750936210312,2.57713008,143.51,143.45,2.3352]
[1750936210611,6.9658,143.5,143.48,6.9663]
[1750936212215,6.9654,143.51,143.49,6.9661]
[1750936214422,3.49540424,143.52,143.45,2.3352]
[1750936214629,3.49540424,143.5,143.45,2.3352]
[1750936215418,3.49540424,143.48,143.45,2.3352]
[1750936215620,3.49540424,143.48,143.45,9.303]
[1750936215621,6.9674,143.47,143.45,9.303]
[1750936216622,3.49540424,143.48,143.45,2.3352]
[1750936216925,3.49540424,143.46,143.43,35.22]
[1750936217222,10.46320424,143.46,143.43,6.9689]
[1750936217525,10.46320424,143.46,143.42,4.6516]
[1750936217724,10.46320424,143.46,143.44,6.9683]
[1750936218626,3.49540424,143.46,143.45,6.968]
[1750936218919,3.49540424,143.48,143.42,4.6516]
[1750936219321,10.46220424,143.48,143.42,4.6516]
[1750936220023,10.46220424,143.48,143.46,6.9675]
[1750936222129,3.49540424,143.48,143.47,6.9671]
[1750936222429,35.24,143.49,143.47,6.9671]
[1750936223332,42.2063,143.49,143.47,6.9671]
[1750936223530,5.0093387,143.48,143.46,6.9673]
[1750936223738,35.24,143.49,143.46,6.9673]
[1750936223935,11.97648085,143.48,143.46,6.9673]
[1750936224136,6.9666,143.48,143.46,6.9673]
[1750936225132,3.49540424,143.48,143.43,2.4193]
[1750936225727,6.9673,143.47,143.44,6.9683]
[1750936226732,6.9673,143.47,143.45,6.968]
[1750936227837,6.9676,143.46,143.44,6.9683]
[1750936230936,6.969,143.44,143.41,8.63257568]
[1750936231132,3.49540424,143.46,143.4,37.5315]
[1750936231538,6.9681,143.45,143.4,37.5315]
[1750936231733,3.49540424,143.46,143.4,37.5315]
[1750936231940,3.49540424,143.48,143.44,6.9683]
[1750936232935,6.9672,143.47,143.44,6.9683]
[1750936233543,10.46220424,143.48,143.42,6.50383677]
[1750936233737,3.49540424,143.48,143.43,6.50383677]
[1750936234037,35.22,143.49,143.45,6.50383677]
[1750936234739,35.22,143.49,143.45,8.90393677]
[1750936236242,192.16764491,143.51,143.45,8.90393677]
[1750936236436,38.71540424,143.53,143.47,6.50383677]
[1750936236838,45.67990424,143.53,143.5,6.9653]
[1750936237038,45.67990424,143.53,143.47,6.50383677]
[1750936237240,10.45990424,143.53,143.47,6.50383677]
[1750936239443,10.45990424,143.53,143.48,6.50383677]
[1750936239644,10.45990424,143.53,143.46,8.63257568]
[1750936239645,10.45990424,143.53,143.5,6.9653]
[1750936239848,10.45990424,143.53,143.46,8.63257568]
[1750936240745,6.9647,143.52,143.5,6.9653]
[1750936241346,10.45980424,143.53,143.5,6.9653]
[1750936241540,3.49540424,143.53,143.5,6.9653]
[1750936242238,6.9647,143.52,143.5,6.9653]
[1750936242439,2.5862783,143.51,143.5,6.9653]
[1750936248752,38.71540424,143.55,143.53,6.9637]
[1750936248952,5.23566357,143.54,143.53,6.9637]
[1750936251248,45.67880424,143.55,143.53,6.9637]
[1750936252655,38.71540424,143.55,143.49,4.8404]
[1750936252856,5.23155225,143.54,143.49,4.8404]
[1750936253057,38.71540424,143.55,143.49,4.8404]
[1750936253256,12.19555225,143.54,143.51,6.9647]
[1750936253449,6.964,143.54,143.51,6.9647]
[1750936254254,6.964,143.54,143.52,6.9646]
[1750936254752,6.9642,143.53,143.49,4.8404]
[1750936254955,6.9642,143.53,143.51,6.9647]
[1750936256059,6.9639,143.54,143.52,6.9646]
[1750936256360,38.71540424,143.55,143.49,4.8404]
[1750936257155,6.9644,143.53,143.51,6.9649]
[1750936257852,6.9639,143.54,143.52,6.9646]
[1750936259563,6.9637,143.54,143.52,6.9646]
[1750936261454,6.9642,143.53,143.51,6.965]
[1750936261856,38.71540424,143.55,143.49,4.8404]
[1750936262060,6.9644,143.53,143.51,6.9651]
[1750936263761,6.9639,143.54,143.52,6.9646]
[1750936267070,6.9642,143.53,143.51,6.9649]
[1750936268470,6.9646,143.52,143.5,6.9653]
[1750936268772,3.49540424,143.53,143.49,4.8404]
[1750936269271,10.45990424,143.53,143.49,4.8404]
[1750936269658,10.45990424,143.53,143.51,6.9649]
[1750936271679,10.45990424,143.53,143.52,6.9646]
[1750936271881,9.49567682,143.53,143.52,6.9646]
[1750936273369,2.53117682,143.53,143.52,6.9646]
[1750936276178,35.22,143.55,143.54,6.9637]
[1750936276379,37.77341229,143.55,143.5,2.4826]
[1750936276577,2.55341229,143.54,143.5,2.4826]
[1750936276883,42.1832,143.55,143.53,6.9639]
[1750936277078,2.55505769,143.54,143.53,6.9639]
[1750936278181,6.9624,143.57,143.55,6.9627]
[1750936278481,3.49540424,143.58,143.5,14.61057992]
[1750936278682,11.87304444,143.57,143.55,6.9629]
[1750936278871,3.49540424,143.58,143.5,14.61057992]
[1750936279076,4.91084444,143.57,143.5,14.61057992]
[1750936279277,11.30334967,143.58,143.5,14.61057992]
[1750936279482,4.91119482,143.57,143.5,14.61057992]
[1750936279687,4.34214959,143.58,143.5,14.61057992]
[1750936279979,11.87940538,143.57,143.55,6.9629]
[1750936280180,6.9622,143.57,143.55,6.9629]
[1750936281285,11.3168527,143.57,143.55,6.9629]
[1750936281478,6.9622,143.57,143.55,6.9629]
[1750936281678,11.3168527,143.57,143.55,6.9629]
[1750936281878,6.9622,143.57,143.55,6.9629]
[1750936284885,3.49540424,143.57,143.5,11.11517568]
[1750936285083,3.49540424,143.52,143.49,4.8404]
[1750936285289,3.49540424,143.52,143.51,6.9651]
[1750936285782,38.67540424,143.54,143.51,6.9651]
[1750936286181,38.67540424,143.54,143.52,6.9644]
[1750936286585,38.67540424,143.54,143.49,2.3895]
[1750936286586,3.49540424,143.54,143.53,6.9642]
[1750936287189,6.9634,143.55,143.53,6.9642]
[1750936290084,2.5003022,143.54,143.53,6.9642]
[1750936292905,35.18,143.56,143.54,6.9634]
[1750936293090,2.49532315,143.55,143.54,6.9634]
[1750936293602,4.91476327,143.6,143.54,38.63540424]
[1750936293803,4.55030527,143.59,143.55,2.3231]
[1750936294099,6.9606,143.61,143.58,6.9613]
[1750936294397,9.47309684,143.6,143.58,6.9613]
[1750936294609,4.54854111,143.59,143.58,6.9613]
[1750936295392,9.46872625,143.61,143.55,2.3231]
[1750936295594,3.49540424,143.62,143.55,2.3231]
[1750936295901,9.4692587,143.61,143.59,6.9609]
[1750936296198,11.88082758,143.62,143.59,6.9609]
[1750936296397,9.49770467,143.61,143.59,6.9609]
[1750936296597,6.96,143.62,143.59,6.9609]
[1750936296798,11.53739214,143.61,143.59,6.9609]
[1750936297100,4.920781,143.62,143.59,6.9609]
[1750936297300,4.57394139,143.61,143.59,6.9609]
[1750936297511,11.87869263,143.62,143.59,6.9609]
[1750936297801,4.57302563,143.61,143.59,6.9609]
[1750936298002,6.9603,143.61,143.59,6.9609]
[1750936298198,9.49012667,143.62,143.59,6.9609]
[1750936298502,6.9605,143.61,143.58,6.9617]
[1750936299703,6.9611,143.6,143.57,6.962]
[1750936299903,6.9611,143.6,143.56,2.4208]
[1750936300299,6.9611,143.6,143.57,6.9618]
[1750936300693,6.9611,143.6,143.56,2.4208]
[1750936301300,6.9606,143.61,143.56,2.4208]
[1750936301709,6.9606,143.61,143.58,6.9614]
[1750936303611,6.9608,143.6,143.58,6.9614]
[1750936303802,8.0686758,143.62,143.58,6.9614]
[1750936304203,6.9607,143.61,143.58,6.9614]
[1750936304403,8.0686758,143.62,143.56,6.9624]
[1750936304602,3.49540424,143.6,143.55,2.3231]
[1750936304900,6.962,143.58,143.55,2.3231]
[1750936305105,3.49540424,143.6,143.55,9.286]
[1750936305306,6.962,143.58,143.55,9.286]
[1750936305702,6.962,143.58,143.56,6.9627]
[1750936308314,6.9614,143.59,143.57,6.9622]
[1750936312216,10.45640424,143.6,143.58,6.9617]
[1750936312416,3.49540424,143.6,143.55,2.3231]
[1750936312907,6.9615,143.59,143.57,6.9619]
[1750936315516,6.9617,143.58,143.56,6.9625]
[1750936315817,3.49540424,143.6,143.55,2.3231]
[1750936316017,6.9615,143.59,143.57,6.9622]
[1750936317318,6.9617,143.58,143.56,6.9626]
[1750936318119,6.9617,143.58,143.57,6.9622]
[1750936318519,6.9617,143.58,143.55,2.3231]
[1750936318912,6.9617,143.58,143.56,6.9623]
[1750936319513,3.49540424,143.6,143.56,6.9623]
[1750936319514,6.9615,143.59,143.56,6.9623]
[1750936320321,6.9615,143.59,143.57,6.9621]
[1750936323621,10.45640424,143.6,143.58,6.9617]
[1750936326425,3.49540424,143.62,143.55,5.81850424]
[1750936326621,38.57540424,143.65,143.57,3.49540424]
[1750936327033,35.08,143.65,143.59,3.49540424]
[1750936327333,5.87370424,143.67,143.6,2.4065]
[1750936327636,6.9581,143.66,143.63,6.9589]
[1750936328438,5.87370424,143.67,143.62,6.9596]
[1750936328736,3.49540424,143.65,143.62,6.9596]
[1750936328936,10.45400424,143.65,143.62,6.9596]
[1750936330338,6.9589,143.64,143.62,6.9596]
[1750936337445,10.45400424,143.65,143.63,6.9593]
[1750936338143,6.9586,143.65,143.63,6.9593]
[1750936338334,2.2754,143.71,143.62,2.23224399]
[1750936338643,2.23224399,143.67,143.63,2.23224399]
[1750936338842,2.48260719,143.66,143.63,2.23224399]
[1750936339139,2.48260719,143.65,143.62,35.08]
[1750936339339,2.48260859,143.64,143.62,35.08]
[1750936339541,2.23224399,143.68,143.63,2.23224399]
[1750936339842,7.44263026,143.67,143.66,6.9579]
[1750936340045,4.71468649,143.67,143.62,37.31224399]
[1750936340344,2.4824425,143.66,143.62,35.08]
[1750936340542,3.48764462,143.65,143.62,35.08]
[1750936340841,10.44634462,143.65,143.62,6.9595]
[1750936341839,6.9587,143.65,143.63,6.9591]
[1750936343842,6.9587,143.65,143.62,6.9596]
[1750936344047,3.48764462,143.66,143.6,2.4065]
[1750936344237,2.47942034,143.65,143.6,2.4065]
[1750936344433,6.9591,143.64,143.62,6.9595]
[1750936344630,38.56764462,143.66,143.62,6.9595]
[1750936345344,9.43791646,143.65,143.62,6.9595]
[1750936345535,38.56764462,143.66,143.62,6.9595]
[1750936345731,2.47920182,143.65,143.62,6.9595]
[1750936346038,2.47902141,143.64,143.62,6.9595]
[1750936346241,6.9586,143.65,143.62,6.9595]
[1750936346439,2.48259852,143.64,143.62,6.9595]
[1750936346642,6.9586,143.65,143.62,6.9595]
[1750936346842,2.48259854,143.64,143.62,6.9595]
[1750936347149,6.9588,143.64,143.62,6.9595]
[1750936347446,43.52725777,143.66,143.62,6.9595]
[1750936347652,9.44109347,143.65,143.62,6.9595]
[1750936347943,2.48249347,143.64,143.62,6.9595]
[1750936348145,38.56764462,143.66,143.62,6.9595]
[1750936348347,9.44091999,143.65,143.63,6.9593]
[1750936348535,2.48221999,143.64,143.63,6.9593]
[1750936349848,45.52574462,143.66,143.64,6.9587]
[1750936350051,2.48195618,143.65,143.64,6.9587]
[1750936352749,15.41516101,143.68,143.66,6.9579]
[1750936352949,2.48203937,143.67,143.66,6.9579]
[1750936354142,42.0365,143.69,143.67,6.9572]
[1750936354345,2.48214372,143.68,143.67,6.9572]
[1750936358146,9.43904372,143.68,143.66,6.9576]
[1750936358351,8.45670245,143.7,143.63,35.08]
[1750936358654,2.48106653,143.69,143.63,35.08]
[1750936358847,5.96871115,143.68,143.65,6.958]
[1750936359048,3.48764462,143.68,143.65,6.958]
[1750936359544,3.48764462,143.68,143.64,6.9586]
[1750936359545,6.9579,143.66,143.64,6.9586]
[1750936359750,6.9579,143.66,143.63,35.08]
[1750936359751,3.48764462,143.66,143.63,35.08]
[1750936360047,6.9586,143.65,143.63,6.959]
[1750936360249,3.48764462,143.66,143.6,40.91414462]
[1750936360652,10.44584462,143.66,143.6,40.91414462]
[1750936361552,10.44584462,143.66,143.63,6.959]
[1750936361755,10.44584462,143.66,143.6,40.91414462]
[1750936362052,6.9584,143.65,143.63,6.9591]
[1750936362855,6.958,143.66,143.6,37.4265]
[1750936363051,8.45670245,143.68,143.6,37.4265]
[1750936363250,2.48544121,143.67,143.6,37.4265]
[1750936363452,2.48544121,143.66,143.64,6.9586]
[1750936363652,6.9577,143.67,143.64,6.9586]
[1750936363852,2.48418309,143.66,143.64,6.9586]
[1750936364052,6.9577,143.67,143.64,6.9586]
[1750936364355,2.48418309,143.66,143.64,6.9586]
[1750936364559,6.9577,143.67,143.65,6.9583]
[1750936364761,2.48462811,143.66,143.65,6.9583]
[1750936365559,2.48462811,143.66,143.64,6.9586]
[1750936365754,2.48462811,143.65,143.64,6.9586]
[1750936367154,2.48462811,143.65,143.63,6.959]
[1750936367360,3.48764462,143.66,143.63,6.959]
[1750936367657,9.44578803,143.65,143.63,6.959]
[1750936367846,6.9585,143.65,143.63,6.959]
[1750936370160,6.9585,143.65,143.62,6.9595]
[1750936370461,9.44419457,143.64,143.62,6.9595]
[1750936370647,6.9589,143.64,143.62,6.9595]
[1750936371052,3.48764462,143.64,143.6,35.02]
[1750936371248,2.47511667,143.63,143.58,141.96204577]
[1750936371453,6.9612,143.59,143.58,8.63257568]
[1750936371654,9.43702427,143.59,143.57,15.59457568]
[1750936371857,3.48764462,143.6,143.57,6.962]
[1750936372059,2.47579542,143.59,143.57,6.962]
[1750936372258,10.44874462,143.6,143.54,48.41397568]
[1750936372553,2.4759686,143.59,143.54,8.63257568]
[1750936372752,3.48764462,143.6,143.5,8.63257568]
[1750936372753,3.48764462,143.56,143.5,8.63257568]
[1750936372961,3.48764462,143.54,143.49,8.63257568]
[1750936373153,3.48764462,143.54,143.48,39.6912]
[1750936373154,2.47426417,143.53,143.48,48.32377568]
[1750936373356,3.48764462,143.54,143.48,39.6912]
[1750936373357,10.45134462,143.54,143.48,39.6912]
[1750936373865,10.45134462,143.54,143.51,6.9649]
[1750936374069,10.45134462,143.54,143.48,39.6912]
[1750936374760,3.48764462,143.54,143.48,39.6912]
[1750936374960,3.48764462,143.56,143.48,39.6912]
[1750936375162,2.46849874,143.55,143.48,48.32377568]
[1750936375360,10.45064462,143.56,143.53,6.9642]
[1750936375574,3.48764462,143.54,143.48,4.6712]
[1750936375760,3.48764462,143.52,143.46,37.4304]
[1750936376061,10.45254462,143.52,143.49,6.9658]
[1750936379258,3.48764462,143.52,143.46,37.4304]
[1750936379564,3.48764462,143.5,143.46,37.4304]
[1750936379757,3.48764462,143.48,143.44,147.36636994]
[1750936380071,3.48764462,143.48,143.46,6.9673]
[1750936380261,3.48764462,143.48,143.44,147.36636994]
[1750936380761,2.44243032,143.54,143.44,150.85401456]
[1750936380967,3.48764462,143.53,143.46,3.48764462]
[1750936381469,10.45204462,143.53,143.49,6.9657]
[1750936381667,3.48764462,143.53,143.49,6.9657]
[1750936381970,10.45204462,143.53,143.49,6.9657]
[1750936382160,3.48764462,143.53,143.49,6.9657]
[1750936382465,3.48764462,143.53,143.5,6.9656]
[1750936382664,38.52764462,143.54,143.47,38.52764462]
[1750936383368,45.49154462,143.54,143.47,38.52764462]
[1750936384372,38.52764462,143.54,143.47,38.52764462]
[1750936384568,38.52764462,143.54,143.48,2.2764]
[1750936384767,35.04,143.54,143.48,2.2764]
[1750936384966,38.52764462,143.54,143.48,2.2764]
[1750936385466,45.49154462,143.54,143.51,6.965]
[1750936387272,45.49154462,143.54,143.52,6.9646]
[1750936387574,10.45154462,143.54,143.52,6.9646]
[1750936387774,10.45154462,143.54,143.48,2.2764]
[1750936388077,639.98764462,143.56,143.49,3.48764462]
[1750936388273,38.50764462,143.56,143.49,3.48764462]
[1750936388574,45.47064462,143.56,143.53,6.9639]
[1750936389672,38.50764462,143.56,143.53,6.9639]
[1750936390172,38.50764462,143.56,143.54,6.9637]
[1750936390376,35.02,143.56,143.54,6.9637]
[1750936390584,3.48764462,143.58,143.54,6.9637]
[1750936390877,6.9625,143.57,143.54,6.9637]
[1750936391281,3.48764462,143.58,143.55,6.9631]
[1750936391978,10.44964462,143.58,143.55,6.9631]
[1750936392173,3.48764462,143.58,143.55,6.9631]
[1750936392677,6.9624,143.57,143.55,6.9631]
[1750936392874,6.9624,143.57,143.54,6.9634]
[1750936393181,6.9628,143.56,143.51,38.50764462]
[1750936393374,6.9628,143.56,143.53,6.9639]
[1750936394370,6.9628,143.56,143.54,6.9637]
[1750936395271,6.9625,143.57,143.55,6.9631]
[1750936395673,10.44964462,143.58,143.56,6.9627]
[1750936395876,3.48764462,143.6,143.53,3.48764462]
[1750936396178,3.48764462,143.6,143.54,2.4811]
[1750936396376,6.9616,143.59,143.56,6.9623]
[1750936398480,6.9616,143.59,143.57,6.9621]
[1750936399876,6.9616,143.59,143.56,6.9625]
[1750936400686,6.9616,143.59,143.57,6.9621]
[1750936400884,3.48764462,143.6,143.57,6.9621]
[1750936402688,35.02,143.62,143.56,35.0]
[1750936403189,6.961,143.6,143.57,6.9618]
[1750936404387,6.961,143.6,143.56,35.0]
[1750936404388,6.961,143.6,143.58,6.9617]
[1750936404595,6.961,143.6,143.56,35.0]
[1750936404981,10.44814462,143.61,143.58,6.9616]
[1750936405893,41.9799,143.62,143.56,35.0]
[1750936406198,41.9799,143.62,143.59,6.9608]
[1750936406697,10.44704462,143.63,143.57,5.96124462]
[1750936407194,10.44704462,143.63,143.6,6.9605]
[1750936407590,3.48764462,143.63,143.59,6.9609]
[1750936408092,3.48764462,143.63,143.56,35.0]
[1750936408299,3.48764462,143.61,143.56,35.0]
[1750936409202,3.48764462,143.59,143.54,140.30349044]
[1750936410102,6.962,143.58,143.55,6.9631]
[1750936410696,6.9622,143.57,143.55,6.9631]
[1750936415304,6.9621,143.58,143.55,6.9631]
[1750936415608,3.48764462,143.59,143.55,6.9631]
[1750936416403,6.9625,143.57,143.55,6.9631]
[1750936416799,6.962,143.58,143.55,6.9629]
[1750936417905,3.48764462,143.59,143.55,6.9629]
[1750936418107,2.4453149,143.58,143.55,6.9629]
[1750936418302,3.48764462,143.59,143.55,6.9629]
[1750936418509,2.44576933,143.58,143.55,6.9629]
[1750936418700,6.962,143.58,143.55,6.9629]
[1750936419709,6.9623,143.57,143.55,6.9629]
[1750936432318,6.9627,143.56,143.54,147.26699044]
[1750936432702,6.9624,143.57,143.55,6.9632]
[1750936433808,4.6070679,143.58,143.56,6.9625]
[1750936434015,9.53381888,143.6,143.54,143.79113506]
[1750936434213,2.4550983,143.59,143.54,152.42371074]
[1750936434516,6.9613,143.59,143.57,6.9619]
[1750936435704,6.961,143.6,143.58,6.9617]
[1750936435909,2.45530518,143.59,143.58,6.9617]
[1750936437217,9.41650518,143.59,143.58,6.9617]
[1750936437613,2.45530518,143.59,143.58,6.9617]
[1750936440616,9.41650518,143.59,143.57,6.9619]
[1750936440921,2.45530518,143.58,143.57,6.9619]
[1750936445423,38.48764462,143.61,143.58,6.9615]
[1750936445625,2.46161636,143.6,143.58,6.9615]
[1750936445924,2.46161636,143.59,143.58,6.9615]
[1750936459931,2.23371968,143.6,143.59,6.9612]
[1750936460131,2.45793159,143.6,143.59,6.9612]
[1750936461729,44.19421968,143.61,143.59,6.9612]
[1750936463532,6.96,143.62,143.6,6.9608]
[1750936463734,9.19371968,143.62,143.6,6.9608]
[1750936467136,2.4567133,143.61,143.6,6.9608]
[1750936469136,9.19371968,143.62,143.6,6.9608]
[1750936469533,2.23371968,143.62,143.59,2.23371968]
[1750936469838,6.9595,143.63,143.61,6.9603]
[1750936470034,2.45135802,143.62,143.61,6.9603]
[1750936473049,11.6448777,143.62,143.6,6.9605]
[1750936473240,2.45082297,143.61,143.6,6.9605]
[1750936474342,9.41112297,143.61,143.59,6.961]
[1750936474646,6.9603,143.61,143.59,6.961]
[1750936475141,9.19381968,143.62,143.6,6.9608]
[1750936475347,2.45359454,143.61,143.6,6.9608]
[1750936476850,9.41389454,143.61,143.59,6.9609]
[1750936477042,2.45359454,143.6,143.59,6.9609]
[1750936478549,9.41439454,143.6,143.58,6.9615]
[1750936478845,2.45359454,143.59,143.58,6.9615]
[1750936485046,4.68731422,143.59,143.56,8.67945723]
[1750936485253,4.68731422,143.58,143.55,8.67945723]
[1750936485454,2.23371968,143.58,143.55,8.67945723]
[1750936485655,6.9622,143.57,143.54,186.29754767]
[1750936485856,9.19591968,143.57,143.54,186.29754767]
[1750936486062,9.19591968,143.57,143.56,6.5154971]
[1750936486259,11.65085362,143.57,143.56,6.5154971]
[1750936487542,9.41713394,143.57,143.56,6.5154971]
[1750936487742,2.45493394,143.57,143.56,13.4781971]
[1750936488456,9.19571968,143.58,143.56,13.4781971]
[1750936490348,9.19571968,143.58,143.56,6.9627]
[1750936490744,2.4539575,143.57,143.56,6.9627]
[1750936498253,9.19571968,143.58,143.56,6.9627]
[1750936500768,9.19591968,143.57,143.55,6.9629]
[1750936501063,37.15371968,143.56,143.54,6.5154971]
[1750936501259,2.23371968,143.55,143.51,13.4801971]
[1750936501459,2.23371968,143.52,143.5,7.8058071]
[1750936501660,34.92,143.56,143.5,7.8058071]
[1750936501958,2.44584138,143.55,143.53,2.23371968]
[1750936502163,2.23371968,143.57,143.53,8.74921678]
[1750936502363,4.67860933,143.56,143.53,6.5154971]
[1750936502563,2.44488965,143.55,143.53,6.5154971]
[1750936502764,2.23371968,143.56,143.53,6.5154971]
[1750936503366,9.19661968,143.56,143.54,6.9636]
[1750936503667,2.23371968,143.56,143.54,6.9636]
[1750936504061,2.23371968,143.56,143.53,6.9639]
[1750936504369,2.23371968,143.54,143.52,6.5154971]
[1750936504669,9.19771968,143.54,143.51,6.5154971]
[1750936505063,9.19771968,143.54,143.52,6.9646]
[1750936507074,2.23371968,143.53,143.5,1.29031]
[1750936507273,2.23371968,143.52,143.5,1.29031]
[1750936507475,9.19831968,143.52,143.5,8.25571]
[1750936507663,2.23371968,143.52,143.5,1.29031]
[1750936508672,2.23371968,143.53,143.5,1.29031]
[1750936508868,34.88,143.55,143.5,3.52402968]
[1750936508869,2.23371968,143.54,143.5,3.52402968]
[1750936509068,2.23371968,143.54,143.5,10.03952678]
[1750936509263,2.23371968,143.52,143.5,1.29031]
[1750936509774,2.23371968,143.53,143.5,1.29031]
[1750936509975,6.9639,143.54,143.5,10.03952678]
[1750936510165,9.19761968,143.54,143.5,10.03952678]
[1750936510571,9.19761968,143.54,143.52,6.9645]
[1750936511574,2.23371968,143.54,143.52,6.9645]
[1750936511769,2.23371968,143.54,143.53,6.9642]
[1750936512366,6.9629,143.56,143.52,2.23371968]
[1750936512570,2.23371968,143.56,143.52,2.23371968]
[1750936513077,2.23371968,143.56,143.52,8.74921678]
[1750936513279,9.19621968,143.57,143.53,2.23371968]